{"text_format":"1","workbook":"xlsx","n_sheets":3,"sheets":["Relació de despeses","Relació d'ingressos ","despeses i ingressos"],"not_rendered":{"charts":0,"images":3,"macros":1,"external_links":0,"defined_names":8,"comments":3,"pivot_tables":0},"unopened":[],"bounds":{"document_bytes":16777216,"sheet_cells":100000,"rows_first":2000,"rows_last":500,"rows_between":2000,"halvings":0,"cell_chars":16384,"cell_head_chars":4096},"cells_cut":0,"cells_raw":0,"read":"whole","date_system":"1900"}

{"sheet":"Relació de despeses","index":0,"n_rows":139,"n_cols":12,"rows_kept":139,"cut":false,"hidden":false,"merged":[[13,11,13,12],[33,11,33,12],[32,11,32,12],[26,11,26,12],[25,11,25,12],[40,11,40,12],[39,11,39,12],[42,0,42,12],[18,0,18,12],[47,11,47,12],[46,11,46,12],[44,11,44,12],[38,11,38,12],[19,11,19,12],[20,11,20,12],[30,0,30,12],[36,0,36,12],[31,11,31,12],[41,0,41,6],[21,11,21,12],[27,11,27,12],[29,0,29,6],[24,0,24,12],[37,11,37,12],[35,11,35,12],[34,11,34,12],[22,11,22,12],[23,0,23,6],[23,11,23,12],[29,11,29,12],[28,11,28,12],[35,0,35,6],[43,11,43,12],[0,0,0,12],[4,0,4,1],[17,0,17,6],[2,2,2,3],[3,2,3,3],[4,2,4,3],[12,11,12,12],[2,0,2,1],[3,0,3,1],[7,1,8,1],[7,0,8,0],[6,0,6,4],[7,11,7,12],[8,11,8,12],[11,0,11,12],[7,3,7,4],[2,4,2,6],[3,4,3,6],[2,9,2,10],[17,11,17,12],[9,0,9,12],[10,0,10,1],[4,4,4,6],[7,2,8,2],[3,9,3,10],[4,9,4,10],[14,11,14,12],[81,11,81,12],[68,11,68,12],[67,11,67,12],[76,0,76,12],[81,0,81,6],[77,11,77,12],[80,11,80,12],[45,11,45,12],[79,11,79,12],[16,11,16,12],[70,0,70,12],[75,0,75,6],[69,0,69,6],[64,0,64,12],[47,0,47,6],[73,11,73,12],[72,11,72,12],[69,11,69,12],[41,11,41,12],[55,0,55,6],[50,0,50,12],[105,0,105,11],[106,0,106,11],[107,0,107,11],[108,0,108,11],[109,0,109,11],[110,0,110,11],[82,0,82,12],[89,0,89,5],[89,11,89,12],[104,0,104,11],[99,0,99,10],[94,0,94,10],[103,0,103,11],[98,0,98,10],[96,0,96,10],[97,0,97,10],[75,11,75,12],[74,11,74,12],[88,0,88,2],[88,3,88,6],[88,11,88,12],[83,11,83,12],[85,11,85,12],[86,11,86,12],[87,0,87,6],[87,11,87,12],[65,11,65,12],[66,11,66,12],[71,11,71,12],[49,0,49,1],[61,0,61,6],[57,11,57,12],[58,11,58,12],[59,11,59,12],[60,11,60,12],[61,11,61,12],[56,0,56,12],[55,11,55,12],[54,11,54,12],[53,11,53,12],[52,11,52,12],[51,11,51,12],[63,0,63,1],[111,0,111,11],[112,0,112,11],[132,0,132,11],[117,0,117,11],[118,0,118,11],[119,0,119,11],[120,0,120,11],[133,0,133,11],[134,0,134,11],[113,0,113,11],[115,0,115,11],[116,0,116,11],[135,0,135,11],[136,0,136,11],[137,0,137,11],[138,0,138,11],[121,0,121,11],[123,0,123,11],[124,0,124,11],[125,0,125,11],[126,0,126,11],[127,0,127,11],[128,0,128,11],[130,0,130,11],[131,0,131,11]]}
["Relació classificada de totes les despeses realitzades per a l'execució de l'activitat  subvencionada"]
[]
["Persona física/jurídica beneficiària:         ",null,null,null,"Import del cost total del projecte:",null,null,null,null,null,null,"euros"]
["Codi de subvenció:",null,null,null,"Import de la subvenció atorgada:",null,null,null,null,null,null,"euros"]
["Nom del projecte subvencionat:",null,null,null,"Període d'execució del projecte subvencionat:",null,null,null,null,null,null,"a"]
[]
["Despeses del projecte/activitat/servei subvencionat (*)"]
["Núm. d'ordre (0)","número de document: justificants despesa personal (1), factura o rebut/tiquet(2)","Concepte de la factura / \ndocument probatori equivalent","Emissor/a de la factura",null,"Data d'emissió","Import total de la factura","Percentatge d'iva deduït o el de després d'aplicar la Prorrata","Import després de deduïr l'IVA corresponent","Import imputable (dedicat) al projecte (3)","Import imputable a la subvenció municipal (4)","Observacions"]
[null,null,null,"NIF","Nom","dd/mm/aaaa","euros","%","euros","euros","euros"]
["DESPESES DIRECTES (Aquelles que s'identifiquen directament amb el projecte)"]
["Submodalitat AC1"]
["AC1.D1.  Honoraris de les persones formadores externes (preu màxim hora 60€/hora, inclòs IRPF si escau, no inclou IVA si formació no està exempta)"]
[]
[]
[]
[]
[]
[null,null,null,null,null,null,null,null,"Subtotal D.1",{"$f":"SUM(J13:J17)","v":0},{"$f":"SUM(K13:K17)","v":0}]
["AC1.D2.  Lloguer de béns immobles vinculats directament a la realització de la formació"]
[]
[]
[]
[]
[null,null,null,null,null,null,null,null,"Subtotal D.2",{"$f":"SUM(J20:J23)","v":0},{"$f":"SUM(K20:K23)","v":0}]
["AC1.D3. Adquisició de materials i béns consumibles necessaris per la realització de la formació"]
[]
[]
[]
[]
[null,null,null,null,null,null,null,null,"Subtotal D.3",{"$f":"SUM(J26:J29)","v":0},{"$f":"SUM(K26:K29)","v":0}]
["AC1.D4. Transport – missatgeria directament vinculats amb la realització de la formació"]
[]
[]
[]
[]
[null,null,null,null,null,null,null,null,"Subtotal D.4",{"$f":"SUM(J32:J35)","v":0},{"$f":"SUM(K32:K35)","v":0}]
["AC1.D5.  Assegurances"]
[]
[]
[]
[]
[null,null,null,null,null,null,null,null,"Subtotal D.5",{"$f":"SUM(J38:J41)","v":0},{"$f":"SUM(K38:K41)","v":0}]
["AC1.D6.  Viatges i desplaçaments imputables a les activitats del projecte  (Max 10% subvenció) "]
[]
[]
[]
[]
[null,null,null,null,null,null,null,null,"Subtotal D.6",{"$f":"SUM(J44:J47)","v":0},{"$f":"SUM(K44:K47)","v":0},{"$f":"IF(K48<=J4*0.1,\"\",\"Error: AC1.D6 no pot superar el 10% de la subvenció\")","v":""}]
[]
["Submodalitat AC2"]
["AC2.D1.  Despeses de matriculació en accions formatives externes (mínim de 150 hores i/o cost mínim de 600€ per a cada participant)"]
[]
[]
[]
[]
[null,null,null,null,null,null,null,null,"Subtotal D.7",{"$f":"SUM(J52:J55)","v":0},{"$f":"SUM(K52:K55)","v":0}]
["AC2.D2. Cost salarial persones treballadores que participin en accions formatives de les administracions públiques, universitats i ateneus cooperatius i equivalents a les hores efectivament dedicades a aquesta formació (màxim 30% subvenció)"]
[]
[]
[]
[]
[null,null,null,null,null,null,null,null,"Subtotal D.8",{"$f":"SUM(J58:J61)","v":0},{"$f":"SUM(K58:K61)","v":0},{"$f":"IF(K62<=J4*0.3,\"\",\"Error: AC2.D2 no pot superar el 30% de la subvenció\")","v":""}]
[]
["Submodalitat AC3"]
["AC3.D1.  Despeses d’ajut econòmic –beca- de la persona estudiant en pràctiques (durada mínima 400 hores, i cost brut hora: mínim de 6€/hora en pràctiques universitàries, i mínim d'acord amb la normativa específica Dep. Educació en FP dual"]
[]
[]
[]
[]
[null,null,null,null,null,null,null,null,"Subtotal D.9",{"$f":"SUM(J66:J69)","v":0},{"$f":"SUM(K66:K69)","v":0}]
["AC3.D2.  Despeses de seguretat social de l'alumne/a en pràctiques"]
[]
[]
[]
[]
[null,null,null,null,null,null,null,null,"Subtotal D.10",{"$f":"SUM(J72:J75)","v":0},{"$f":"SUM(K72:K75)","v":0}]
["AC3.D3. Despeses del contracte laboral de la formació dual, modalitat contracte de formació i aprenentatge"]
[]
[]
[]
[]
[null,null,null,null,null,null,null,null,"Subtotal D.11",{"$f":"SUM(J78:J81)","v":0},{"$f":"SUM(K78:K81)","v":0}]
["AC3.D4.  Despeses de gestió associades a la tramitació del Conveni de Cooperació Educativa o l’Acord Formatiu de Col·laboració/ Contracte de formació i aprenentatge"]
[]
[]
[]
[]
[null,null,null,null,null,null,null,null,"Subtotal D.12",{"$f":"SUM(J84:J87)","v":0},{"$f":"SUM(K84:K87)","v":0}]
["TOTAL DESPESES DIRECTES ",null,null,null,null,null,null,null,"TOTAL DESPESES DIRECTES",{"$f":"+J18+J30+J36+J42+J48+J56+J62+J70+J76+J82+J88+J24","v":0},{"$f":"+K18+K30+K36+K42+K48+K56+K62+K70+K76+K82+K88+K24","v":0}]
["TOTAL DESPESES",null,null,null,null,null,null,null,"TOTAL",{"$f":"J89","v":0},{"$f":"K89","v":0}]
[]
[]
[]
["Notes:"]
["(*) S'han de relacionar totes les despeses del projecte/activitat/servei subvencionat. En el cas que el nombre de files de cada concepte sigui insuficient podeu inserir línies dins del mateix concepte seleccionant una cel·la verda i fent clic sobre el botó d'inserir línia."]
["(0) El número d'ordre ha de ser correlatiu començant per D.1.1, D.1.2, D.1.3, D.2.4, etc."]
["(1) Respecte a les despeses de recursos humans, pot ser subvencionable el cost total salarial mensual, que correspon a la suma de la retribució bruta que apareix a la nòmina del treballador/a més la quota de l'empresa a la Seg. Social. Les despeses de personal es justifiquen amb la nòmina del treballador/a acompanyada dels corresponents RLC i RNT (anteriors TC1 i TC2) de la TGSS i el model 111 de l'IRPF."]
["(2) En el cas que el document justificatiu de la resta de despeses, no sigui una factura, sinó un altre document probatori equivalent, com un rebut o justificant (com per dietes o transport públic), indiqueu-lo en la columna \"observacions\"."]
["(3) En el cas que un justificant inclogui conceptes que no tenen relació amb el projecte/activitat/servei per al qual s'ha atorgat la subvenció, aquí només s'ha d'indicar la part que realment s'ha dedicat al projecte."]
["(4) En aquesta columna s'ha d'indicar l'import total o parcial de la factura  que s'imputa a la subvenció rebuda de l'Ajuntament de Barcelona. El total imputat, en aquesta columna, ha de ser igual  a l'import de la subvenció rebuda."]
[]
["Clica la icona per generar un document PDF del llibre"]
[]
["Modalitat Ac: Formació: Innovació i formació per a la millora de la gestió i l'obertura de noves línies de negoci"]
["1. La quantia de la subvenció atorgada no superarà el 80% de la despesa total del projecte a subvencionar. "]
["2. Les sol·licituds poden contenir una proposta de projecte de formació que contingui les tres submodalitats (Ac1, Ac2 i Ac3), o bé tant sols una submodalitat. "]
["3. En qualsevol cas, l’import màxim de subvenció, tant si la sol·licitud conté una, dos o tres submodalitats, serà de 6.000€."]
["4. En el cas que la sol·licitud presentada sobrepassi l’import màxim, es considerarà com a import sol·licitat el màxim de l'establert a la convocatòria."]
["5. En cap cas es consideraran despeses subvencionables:\n> Els impostos indirectes quan siguin susceptibles de recuperació o compensació.\n> Les despeses d'inversió, incloses les adquisicions de béns mobles.\n> Les despeses realitzades amb data anterior a l'inici del projecte i data posterior a la finalització del projecte.\n> Altres despeses que s'indiquin a la convocatòria."]
["6. No són imputables en aquesta modalitat les despeses indirectes, detallades en l’apartat 13.3. de les bases reguladores."]
["7. La retribució de les persones contractades en el marc del projecte subvencionat no pot ser inferior al Salari Mínim Interprofessional (SMI), ni a l'estipulada al corresponent conveni o marc normatiu de referència (punt 7 de les bases 2023: requisits dels projectes)."]
["8. Els projectes subvencionats han de formentar activitats d'interès públic o social, les quals han de ser gratuïtes per a les persones participants o en cap cas el preu ha de suposar un obstacle per a la seva participació, buscant altres formes d'accés per a persones amb dificultats econòmiques. En el cas que hi hagi algun tipus de lucre, haurà de revertir en les pròpies activitats subvencionades."]
["9. L'Ajuntament de Barcelona i les seves entitats municipals en cap cas subvencionaran el mateix projecte, executat durant el mateix període, per cap altre procediment de concessió que no sigui el regulat per les bases reguladores."]
["10. El/la beneficiari/ària no podrà alterar en cap cas el destí de les subvencions concedides."]
[]
["Submodalitat Ac1: Formació grupal per a persones sòcies, treballadores i voluntàries de l'empresa/ organització, d'un mínim de 10 persones i 10 hores"]
["1. El preu màxim hora dels honoraris de les persones formadores externes es limita en 60 euros/hora, inclòs IRPF, si escau però exclòs IVA en cas que la formació no estigui exempta d'aquest impost."]
["2. Les despeses de viatges i desplaçament vinculats amb la realització de la formació i imputables a les activitats del projecte subvencionable es limiten a un màxim d'un 10% de l'import de la subvenció."]
["3. La durada mínima de la formació grupal s'estableix en 10 hores per a cada persona participant i el mínim de participació s'estableix en 10 persones. Serà exigible el full de signatura de les persones participants en l’acció grupal."]
["4. Caldrà justificar  la contribució directa de les accions en la millora del projecte empresarial."]
["5. Es podran organitzar sessions de formació compartides per diferents entitats d’economia social i solidària, per tal d’optimitzar recursos i temps destinat a la realització de les accions, i afavorir la intercooperació."]
["6. Els materials produïts: de difusió, estudis, informes o materials didàctics utilitzats, etc. en el cas de tractar-se de despesa elegible de la subvenció, hauran de tenir llicència Creative Commons -Compartir Igual- (share a like) i no podrà tenir la condició –Sense Obres Derivades- (no derivate Works). "]
[]
["Submodalitat Ac2: Despeses de matriculació del personal de l’entitat en accions formatives externes o bé despeses salarials del personal de l'empresa/ organització en la participació en accions formatives públiques o comunitàries sense cost de matriculació"]
["1.  La formació a subvencionar ha de tenir una durada mínima de 150 hores i/o un cost mínim de 600€ per a cada participant. "]
["2. Per justificar despeses salarials de les persones treballadores de l'organització beneficiària de la subvenció, la durada mínima de les formacions de totes les persones participants haurà de ser de mínim 40h entre totes les persones participants de l'empresa/ organització."]
["3. Serà exigible el certificat d'assistència i/o superació de l'activitat formativa expedit per l'organització formadora on constin les hores, dates i persona/es formada/es de l'empresa/ organització."]
["4. Les despeses salarials de les persones treballadores de l'organització beneficiària, es limiten a un màxim d'un 30% de l'import de la subvenció, només per als casos que participin en accions formatives de les administracions públiques, universitats i ateneus cooperatius i equivalents a les hores efectivament dedicades a aquesta formació."]
["5. Caldrà justificar  la contribució directa de les accions en la millora del projecte empresarial."]
[]
["Submodalitat Ac3: Pràctiques de les persones estudiants universitàries i de formació dual de FP en organitzacions i empreses de l’ESS"]
["1.  Serà exigible el conveni de Cooperació Educativa amb la universitat respectiva, o bé l’Acord Formatiu de Col·laboració (en el cas de beca) o el Contracte de formació i aprenentatge amb el Centre de Formació Professional corresponent, en el moment de la presentació de la justificació."]
["2.  L'alumnat beneficiari han de ser persones residents a la ciutat de Barcelona o estar matriculats/des  en universitats o centres de formació de la ciutat de Barcelona."]
["3.  El programa de pràctiques de l'alumnat ha de ser d’una durada mínima de 400 hores. "]
["4.  Només pot presentar-se una sol·licitud per un lloc de pràctiques per l'organització sol·licitant. "]
["5.  Caldrà donar d’alta a l’alumne/a en la seguretat social com a alumne/a en pràctiques (tant per pràctiques curriculars com extracurriculars universitàries com per als alumnes de FP en formació dual – modalitat beca-)."]
["6.  Caldrà remunerar  l’alumne/a en pràctiques universitàries (curriculars o extracurriculars)  amb un cost brut hora mínim de 6€/hora o superior."]
["7.  Caldrà remunerar l’alumne/a segons la modalitat d’FP dual escollida com a mínim d’acord amb la normativa específica que estableix el Departament d’Educació de la Generalitat de Catalunya, o superior."]
["8.  La formalització de les pràctiques, el desenvolupament del contingut, avaluació i seguiment s’ajustarà a la normativa vigent del Departament d’Educació de la Generalitat de Catalunya i d’altres normes que li siguin d’aplicació."]

{"sheet":"Relació d'ingressos ","index":1,"n_rows":73,"n_cols":10,"rows_kept":73,"cut":false,"hidden":false,"merged":[[53,6,53,9],[52,6,52,9],[64,6,64,9],[59,6,59,9],[66,6,66,9],[60,6,60,9],[61,6,61,9],[62,6,62,9],[63,6,63,9],[66,0,66,3],[65,0,65,3],[65,6,65,9],[0,0,0,9],[9,0,9,9],[15,0,15,9],[21,0,21,9],[7,6,8,9],[10,6,10,9],[11,6,11,9],[7,0,8,0],[12,6,12,9],[13,6,13,9],[3,2,3,3],[2,2,2,3],[6,0,6,3],[4,2,4,3],[7,2,7,3],[7,1,8,1],[14,0,14,3],[44,0,44,3],[27,0,27,9],[33,0,33,9],[39,0,39,9],[38,0,38,3],[32,0,32,3],[14,6,14,9],[20,6,20,9],[29,6,29,9],[28,6,28,9],[38,6,38,9],[37,6,37,9],[30,6,30,9],[32,6,32,9],[31,6,31,9],[26,0,26,3],[50,6,50,9],[49,6,49,9],[20,0,20,3],[45,0,45,9],[47,6,47,9],[46,6,46,9],[26,6,26,9],[25,6,25,9],[24,6,24,9],[23,6,23,9],[22,6,22,9],[36,6,36,9],[35,6,35,9],[48,6,48,9],[44,6,44,9],[19,6,19,9],[18,6,18,9],[17,6,17,9],[16,6,16,9],[34,6,34,9],[41,6,41,9],[40,6,40,9],[51,0,51,9],[57,0,57,9],[56,6,56,9],[43,6,43,9],[42,6,42,9],[58,6,58,9],[56,0,56,3],[50,0,50,3]]}
["Detall de tots els ingressos obtinguts i aportacions del propi beneficiari per a l'execució de l'activitat subvencionada"]
[]
[null,"Nom de la persona física/jurídica beneficiària:        ",{"$f":"'Relació de despeses'!C3:C3","v":0},null,"Import del cost total del projecte :",null,null,{"$f":"IF(+'Relació de despeses'!J3=\"\",\"\",+'Relació de despeses'!J3)","v":""},"euros"]
[null,"Codi de subvenció",{"$f":"'Relació de despeses'!C4:C4","v":0},null,"Import de la subvenció atorgada:",null,null,{"$f":"IF(+'Relació de despeses'!J4=\"\",\"\",+'Relació de despeses'!J4)","v":""},"euros"]
[null,"Nom del projecte subvencionat",{"$f":"'Relació de despeses'!C5:C5","v":0},null,"Període d'execució del projecte subvencionat:",null,null,{"$f":"IF(+'Relació de despeses'!J5=\"\",\"\",+'Relació de despeses'!J5)","v":""},"a",{"$f":"IF(+'Relació de despeses'!M5=\"\",\"\",+'Relació de despeses'!M5)","v":""}]
[]
["Ingressos del projecte/activitat/servei subvencionat"]
["Núm. d'ordre (0)","Concepte de l'ingrés","Emissor/a de l'ingrés",null,"Data de cobrament\n(dd/mm/aaaa)","Import","Observacions"]
[null,null,"NIF","Nom","(1)","euros"]
["A. Subvenció municipal "]
[{"$f":"IF(B11<>\"\",1,\"\")","v":""}]
[]
[]
[{"$f":"IF(B14<>\"\",MAX($A$10:A13)+1,\"\")","v":""}]
[null,null,null,null,"Subtotal A",{"$f":"SUM(F11:F14)","v":0}]
["B. Subvencions d'altres administracions"]
[{"$f":"IF(B17<>\"\",MAX($A$10:A16)+1,\"\")","v":""}]
[{"$f":"IF(B18<>\"\",MAX($A$10:A17)+1,\"\")","v":""}]
[{"$f":"IF(B19<>\"\",MAX($A$10:A18)+1,\"\")","v":""}]
[{"$f":"IF(B20<>\"\",MAX($A$10:A19)+1,\"\")","v":""}]
[null,null,null,null,"Subtotal B",{"$f":"SUM(F17:F20)","v":0}]
["C. Subvencions d'ens privats"]
[{"$f":"IF(B23<>\"\",MAX($A$10:A22)+1,\"\")","v":""}]
[{"$f":"IF(B24<>\"\",MAX($A$10:A23)+1,\"\")","v":""}]
[{"$f":"IF(B25<>\"\",MAX($A$10:A24)+1,\"\")","v":""}]
[{"$f":"IF(B26<>\"\",MAX($A$10:A25)+1,\"\")","v":""}]
[null,null,null,null,"Subtotal C",{"$f":"SUM(F23:F26)","v":0}]
["D. Recursos propis de l'organització aplicats al projecte"]
[{"$f":"IF(B29<>\"\",MAX($A$10:A28)+1,\"\")","v":""}]
[{"$f":"IF(B30<>\"\",MAX($A$10:A29)+1,\"\")","v":""}]
[{"$f":"IF(B31<>\"\",MAX($A$10:A30)+1,\"\")","v":""}]
[{"$f":"IF(B32<>\"\",MAX($A$10:A31)+1,\"\")","v":""}]
[null,null,null,null,"Subtotal D",{"$f":"SUM(F29:F32)","v":0}]
["E. Taquillatge"]
[{"$f":"IF(B35<>\"\",MAX($A$10:A34)+1,\"\")","v":""}]
[{"$f":"IF(B36<>\"\",MAX($A$10:A35)+1,\"\")","v":""}]
[{"$f":"IF(B37<>\"\",MAX($A$10:A36)+1,\"\")","v":""}]
[{"$f":"IF(B38<>\"\",MAX($A$10:A37)+1,\"\")","v":""}]
[null,null,null,null,"Subtotal E",{"$f":"SUM(F35:F38)","v":0}]
["F. Quotes d'inscripció"]
[{"$f":"IF(B41<>\"\",MAX($A$10:A40)+1,\"\")","v":""}]
[{"$f":"IF(B42<>\"\",MAX($A$10:A41)+1,\"\")","v":""}]
[{"$f":"IF(B43<>\"\",MAX($A$10:A42)+1,\"\")","v":""}]
[{"$f":"IF(B44<>\"\",MAX($A$10:A43)+1,\"\")","v":""}]
[null,null,null,null,"Subtotal F",{"$f":"SUM(F41:F44)","v":0}]
["G. Venda de Productes"]
[{"$f":"IF(B47<>\"\",MAX($A$10:A46)+1,\"\")","v":""}]
[{"$f":"IF(B48<>\"\",MAX($A$10:A47)+1,\"\")","v":""}]
[{"$f":"IF(B49<>\"\",MAX($A$10:A48)+1,\"\")","v":""}]
[{"$f":"IF(B50<>\"\",MAX($A$10:A49)+1,\"\")","v":""}]
[null,null,null,null,"Subtotal G",{"$f":"SUM(F47:F50)","v":0}]
["H. Publicitat i/o Esponsorització"]
[{"$f":"IF(B53<>\"\",MAX($A$10:A52)+1,\"\")","v":""}]
[{"$f":"IF(B54<>\"\",MAX($A$10:A53)+1,\"\")","v":""}]
[{"$f":"IF(B55<>\"\",MAX($A$26:A54)+1,\"\")","v":""}]
[{"$f":"IF(B56<>\"\",MAX($A$26:A55)+1,\"\")","v":""}]
[null,null,null,null,"Subtotal H",{"$f":"SUM(F53:F56)","v":0}]
["I. Altres ingressos"]
[{"$f":"IF(B59<>\"\",MAX($A$10:A58)+1,\"\")","v":""}]
[{"$f":"IF(B60<>\"\",MAX($A$10:A59)+1,\"\")","v":""}]
[{"$f":"IF(B61<>\"\",MAX($A$10:A60)+1,\"\")","v":""}]
[{"$f":"IF(B62<>\"\",MAX($A$10:A61)+1,\"\")","v":""}]
[{"$f":"IF(B63<>\"\",MAX($A$10:A62)+1,\"\")","v":""}]
[{"$f":"IF(B64<>\"\",MAX($A$10:A63)+1,\"\")","v":""}]
[{"$f":"IF(B65<>\"\",MAX($A$10:A64)+1,\"\")","v":""}]
[null,null,null,null,"Subtotal I",{"$f":"SUM(F59:F65)","v":0}]
["Total INGRESSOS",null,null,null,"TOTAL",{"$f":"+F15+F21+F27+F33+F39+F45+F51+F57+F66","v":0}]
[]
[]
[]
[null,"Nota:"]
[null,"(0) El número d'ordre ha de ser correlatiu començant pel número 1"]
[null,"(1) En cas que l'ingrés estigui pendent cobrament, indicar \"P. Cobrament\" "]

{"sheet":"despeses i ingressos","index":2,"n_rows":62,"n_cols":11,"rows_kept":62,"cut":false,"hidden":false,"merged":[[6,0,6,1],[6,2,6,3],[9,0,9,1],[9,6,9,7],[10,0,11,1],[10,2,11,2],[10,3,11,3],[10,6,11,7],[4,0,4,1],[4,2,4,3],[4,5,4,6],[5,0,5,1],[5,2,5,3],[5,5,5,6],[41,0,41,10],[42,0,42,10],[10,8,11,8],[10,9,11,9],[36,0,36,10],[37,0,37,10],[38,0,38,10],[39,0,39,10],[40,0,40,10],[12,0,19,0],[12,1,13,1],[12,2,13,2],[12,3,13,3],[12,4,13,4],[20,0,22,0],[23,0,27,0],[26,6,26,7],[28,0,29,0],[27,6,27,7],[27,8,27,9]]}
[]
[]
["Estat de les despeses realitzades i dels ingressos obtinguts per a l'execució de l'activitat subvencionada (*)"]
[]
["Nom de la persona física/jurídica beneficiària:         ",null,{"$f":"'Relació d''ingressos '!C3:D3","v":0},null,null,"Import del cost total del projecte:",null,{"$f":"'Relació d''ingressos '!H3","v":""},"euros"]
["Codi de subvenció:",null,{"$f":"'Relació d''ingressos '!C4:D4","v":0},null,null,"Import de la subvenció atorgada:",null,{"$f":"'Relació d''ingressos '!H4","v":""},"euros"]
["Nom del projecte subvencionat:",null,{"$f":"'Relació d''ingressos '!C5:D5","v":0},null,null,"Període d'execució del projecte subvencionat:",null,null,{"$f":"'Relació d''ingressos '!H5","v":""},"a",{"$f":"'Relació d''ingressos '!J5","v":""}]
[]
["SUBVENCIONS PER A L'ENFORTIMENT DE L'ECONOMIA SOCIAL I SOLIDÀRIA I LA INTERCOOPERACIÓ 2023"]
["DESPESES PREVISTES",null,"import en euros",null,"import en euros",null,"INGRESSOS PREVISTOS",null,"import en euros"]
["Despeses directes \n(aquelles que s'identifiquen directament amb el projecte)",null,"Previsió inicial o reformulada ja aprovada (1)","Despeses realitzades (2)","Diferència\n",null,"Ingressos previstos",null,"Previsió inicial (1)","Ingressos obtinguts (3)"]
[null,null,null,null,"(2-1)"]
["Ac1","D1.  Honoraris de les persones formadores externes (preu màxim hora 60€/hora, inclòs IRPF si escau, no inclou IVA si formació no està exempta)",null,{"$f":"'Relació de despeses'!J18","v":0},{"$f":"+C13-D13","v":0},null,"A.","Subvenció municipal (import sol·licitat a la instància/atorgat)",null,{"$f":"'Relació d''ingressos '!F15","v":0}]
[null,null,null,null,null,null,"B.","Subvencions d'altres administracions",null,{"$f":"'Relació d''ingressos '!F21","v":0}]
[null,"D2.  Lloguer de béns immobles vinculats directament a la realització de la formació",null,{"$f":"'Relació de despeses'!J24","v":0},{"$f":"+C15-D15","v":0},null,"C.","Subvencions d'ens privats",null,{"$f":"'Relació d''ingressos '!F27","v":0}]
[null,"D3. Adquisició de materials i béns consumibles necessaris per la realització de la formació",null,{"$f":"'Relació de despeses'!J30","v":0},{"$f":"+C16-D16","v":0},null,"D.","Recursos propis de l'organització aplicats al projecte",null,{"$f":"'Relació d''ingressos '!F33","v":0}]
[null,"D4. Transport – missatgeria  directament vinculats a la realització de la formació",null,{"$f":"'Relació de despeses'!J36","v":0},{"$f":"+C17-D17","v":0},null,"E.","Taquillatge",null,{"$f":"'Relació d''ingressos '!F39","v":0}]
[null,"D5.  Assegurances",null,{"$f":"'Relació de despeses'!J42","v":0},{"$f":"+C18-D18","v":0},null,"F.","Quotes d'inscripció",null,{"$f":"'Relació d''ingressos '!F45","v":0}]
[null,"D6.  Viatges i desplaçaments imputables a les activitats del projecte  (màxim 10% subvenció) ",null,{"$f":"'Relació de despeses'!J48","v":0},{"$f":"+C19-D19","v":0},null,"G.","Venda de Productes",null,{"$f":"'Relació d''ingressos '!F51","v":0}]
[null,"Subtotal despeses directes Ac1",{"$f":"SUM(C13:C19)","v":0},{"$f":"SUM(D13:D19)","v":0},{"$f":"SUM(E13:E19)","v":0},null,"H","Publicitat i/o Esponsorització",null,{"$f":"'Relació d''ingressos '!F57","v":0}]
["Ac2","D7.  Despeses de matriculació en accions formatives externes (mínim de 150 hores i/o cost mínim de 600€ per a cada participant)",null,{"$f":"'Relació de despeses'!J56","v":0},{"$f":"+C21-D21","v":0},null,"I","Altres ingressos",null,{"$f":"'Relació d''ingressos '!F66","v":0}]
[null,"D.8.  Cost salarial persones treballadores que participin en accions formatives de les administracions públiques, universitats i ateneus cooperatius i equivalents a les hores efectivament dedicades a aquesta formació (màxim 30% subvenció)",null,{"$f":"'Relació de despeses'!J62","v":0},{"$f":"+C22-D22","v":0},null,null,"Total Ingressos",{"$f":"SUM(I13:I21)","v":0},{"$f":"SUM(J13:J21)","v":0}]
[null,"Subtotal despeses directes Ac2",{"$f":"SUM(C21:C22)","v":0},{"$f":"SUM(D21:D22)","v":0},{"$f":"SUM(E21:E22)","v":0}]
["Ac3","D9.  Despeses d’ajut econòmic –beca- de la persona estudiant en pràctiques (durada mínima 400 hores, i cost brut hora: mínim de 6E/hora en pràctiques universitàries, i mínim d'acord amb la normativa específica Dep. Educació en FP dual)",null,{"$f":"'Relació de despeses'!J70","v":0},{"$f":"+C24-D24","v":0},null,null,null,null,null,{"$f":"+IF(J24<0,\"No s'admeten valors negatius\",\"\")","v":""}]
[null,"D10.  Despeses de seguretat social de l'alumne/a en pràctiques",null,{"$f":"'Relació de despeses'!J76","v":0},{"$f":"+C25-D25","v":0}]
[null,"D11. Despeses del contracte laboral de la formació dual, modalitat contracte de formació i aprenentatge",null,{"$f":"'Relació de despeses'!J82","v":0},{"$f":"+C26-D26","v":0}]
[null,"D12  Despeses de gestió associades a la tramitació del Conveni de Cooperació Educativa o l’Acord Formatiu de Col·laboració/ Contracte de formació i aprenentatge",null,{"$f":"'Relació de despeses'!J88","v":0},{"$f":"+C27-D27","v":0},null,"Ingressos menys despeses ",null,{"$f":"I22-C30","v":0},{"$f":"J22-D30","v":0}]
[null,"Subtotal despeses directes Ac3",{"$f":"SUM(C24:C27)","v":0},{"$f":"SUM(D24:D27)","v":0},{"$f":"SUM(E24:E27)","v":0},null,"Desviació de Despeses (4)",null,"Desviació d'ingressos (4)"]
["Ac","Total despeses directes   ",{"$f":"C20+C23+C28","v":0},{"$f":"D20+D23+D28","v":0},{"$f":"E20+E23+E28","v":0},null,"Import"," % ","Import","%"]
[null,"Total Despeses ",{"$f":"C29","v":0},{"$f":"+D29","v":0},{"$f":"+E29","v":0},null,{"$f":"D30-C30","v":0},{"$f":"D30/C30","v":{"$error":"#DIV/0!"}},{"$f":"J22-I22","v":0},{"$f":"J22/I22","v":{"$error":"#DIV/0!"}}]
[null,null,null,null,null,null,null,null,"% subvencionat inicialment o després de reformulació (5)",{"$f":"I13/I22","v":{"$error":"#DIV/0!"}}]
[null,null,null,null,null,null,null,null,"% subvencionat després de justificació (6)",{"$f":"J13/J22","v":{"$error":"#DIV/0!"}}]
[]
[]
[]
["Notes:"]
["(*) Les columnes ombrejades en color  s'aniran emplenant automàticament a partir de les dades introduïdes en els documents de despeses -detall i ingressos-detall. Per tant, no imprimiu aquest full fins haver emplenat els altres."]
["(1) Previsió inicial o reformulació ja aprovada= S'han d'indicar la previsió inicial de despeses i d'ingressos segons allò que es va indicar al projecte original en el \"pla de viabilitat econòmica del projecte - pressupost general\" . En cas que ja s'hagi aprovat una reformulació, s'han d'indicar les quantitats reformulades. "]
["(2) Despeses reals = Cost real total del projecte subvencionat. Automàticament s'introduiran els subtotals de les despeses relacionades al full Despeses-detall."]
["(3) Ingresos reals = Total d'ingressos obtinguts per a la realització del projecte subvencionat. Automàticament s'introduiran els subtotals dels ingressos relacionats al full Ingressos-detall"]
["(4) Desviació: En el cas de les despeses, la desviació és la diferència entre despeses reals i la previsió inicial de despeses; i en el cas d'ingressos, la diferència entre els ingressos reals i la previsió inicial d'ingressos. "]
["(5) % finançament municipal inicial o després de reformulació  = percentatge que suposen les subvencions municipals (A) respecte del  total d'ingressos del projecte subvencionat."]
["(6) % finançament municipal després de justificació = percentatge que suposa la subvenció municipal (A) respecte del  total d'ingressos del projecte subvencionat. En cas d'existir una desviació sempre s'ha de motivar."]
[]
[]
[]
[]
[]
[]
[]
[]
[]
[]
[]
[]
[]
[]
[]
[]
[]
[]
[null,null,0]